[Event "67th Mexican-ch Open 2022"]
[Site "Chihuahua"]
[Date "2022.04.17"]
[Round "8.20"]
[White "Cruz Gomez, Miguel Angel"]
[Black "Paredes Guzman, Francisco Javier"]
[Result "0-1"]
[ECO "B13"]
[WhiteElo "2028"]
[BlackElo "1891"]
[Annotator "TA"]
[PlyCount "126"]
[EventDate "2022.04.12"]
[EventType "swiss"]
[EventCountry "MEX"]
[SourceTitle "playchess.com"]
[Source "ChessBase"]
[SourceQuality "1"]
[TimeControl "5400+30"]

{[%evp 16,126,31,28,25,45,25,-12,-4,-14,-11,-1,0,-4,0,-3,4,0,32,1,28,6,4,6,29,37,37,34,45,10,22,26,20,0,0,-8,40,37,33,35,45,10,16,14,23,20,11,-33,0,0,47,33,64,57,106,106,106,106,117,119,118,112,128,117,270,266,235,237,299,264,269,272,339,319,476,462,595,318,321,193,256,250,231,201,198,52,45,8,8,8,8,0,0,0,0,-10,0,0,86,86,350,337,321,330,712,700,645,395,368,0,0,-914,-697]} 1. d4 {[%emt 0:01:13]} Nf6 {[%emt 0:00:08]} 2. Bf4 {[%emt 0:00:12]} d5 {[%emt 0:00:06]} 3. e3 {[%emt 0:00:13]} c5 {[%emt 0:00:04]} 4. Nf3 {[%emt 0:00:17]} Nc6 {[%emt 0:00:07]} 5. Nbd2 {[%emt 0:01:17]} cxd4 {[%emt 0:01:30]} 6. exd4 {[%emt 0:00:47]} g6 {[%emt 0:00:25]} 7. Be2 {[%emt 0:01:25]} Bg7 {[%emt 0:00:09]} 8. c3 {[%emt 0:00:58]} O-O {[%emt 0:00:16]} 9. O-O {[%emt 0:00:57]} Nh5 {[%emt 0:02:26] 9...Bf5 is more advanced technology. B13: Caro-Kann: Exchange Variation and Panov-Botvinnik Attack.} 10. Bg5 {[%emt 0:04:42]} Qd6 {[%emt 0:22:42]} 11. Ne1 {[%emt 0:07:56]} Nf4 {[%emt 0:06:38] The position is equal.} 12. Bxf4 {[%emt 0:00:03]} Qxf4 {[%emt 0:00:07]} 13. Nd3 {[%emt 0:00:07] [#]} Qd6 $146 {[%emt 0:01:51]} ({Predecessor:} 13... Qc7 14. Re1 Bf5 15. Bf1 Rfd8 16. Nf3 Na5 17. Nh4 Bd7 18. Nc5 Be8 19. Nf3 b6 {0-1 (47) Simutowe,M (2157)-Phiri,R (2235) Livingstone 2017}) 14. f4 {[%emt 0:00:11]} f6 {[%emt 0:06:19]} 15. Nf3 {[%emt 0:03:45]} Be6 {[%emt 0:14:25]} 16. Qe1 {[%emt 0:07:54]} Bf7 {[%emt 0:00:26]} 17. Rd1 {[%emt 0:00:35]} Rac8 {[%emt 0:03:02]} 18. Qg3 {[%emt 0:08:42]} Na5 {[%emt 0:08:10]} 19. Nd2 {[%emt 0:17:48]} Kh8 {[%emt 0:06:32]} 20. Bg4 {[%emt 0:01:35]} e6 {[%emt 0:02:22]} 21. Rde1 {[%emt 0:05:32]} Rce8 {[%emt 0:01:16]} 22. Re2 {[%emt 0:01:03]} Re7 {[%emt 0:01:01]} 23. Rfe1 {[%emt 0:03:06]} Rfe8 {[%emt 0:00:16]} 24. Nf3 {[%emt 0:00:19]} b6 {[%emt 0:04:06]} 25. Qh4 {[%emt 0:06:27]} Qd7 {[%emt 0:02:00]} (25... h6 $11 {should be considered.}) 26. Bh3 $14 {[%emt 0:00:16]} Nc4 {[%emt 0:01:25]} 27. g4 {[%emt 0:05:23]} Nd6 {[%emt 0:01:03]} 28. Nf2 {[%emt 0:00:37]} (28. g5 {is more complex.} f5 29. Nfe5 Qb7 30. Bg2) 28... Qb7 {[%emt 0:01:08]} 29. Bg2 {[%emt 0:03:50]} a5 {[%emt 0:02:12]} 30. Qg3 {[%emt 0:01:30]} Qc7 {[%emt 0:02:09]} 31. Nd2 {[%emt 0:04:14]} a4 {[%emt 0:00:32][%cal Oa4a3]} 32. a3 {[%emt 0:00:07]} b5 {[%emt 0:00:08]} (32... e5 $11) 33. Nd3 {[%emt 0:00:53]} Nc4 {[%emt 0:00:16]} 34. Nf3 {[%emt 0:00:07]} Qd6 {[%emt 0:02:59]} (34... Nd6 $14) 35. g5 $16 {[%emt 0:01:28]} f5 {[%emt 0:00:36]} 36. Nfe5 {[%emt 0:01:33]} Nxe5 {[%emt 0:00:40]} 37. Nxe5 {[%emt 0:00:06]} Bxe5 {[%emt 0:00:17]} 38. Rxe5 {[%emt 0:00:01]} Kg7 {[%emt 0:00:14]} 39. Qh4 {[%emt 0:00:10]} Qd7 $2 {[%emt 0:02:08]} (39... Rc7 $16 40. Bxd5 Kh8) 40. Qh6+ $18 {[%emt 0:00:16]} Kg8 {[%emt 0:00:28] [#]} 41. R1e3 $1 {[%emt 0:00:12] White wants to mate with Rh3.} Kh8 {[%emt 0:00:34]} 42. Rh3 {[%emt 0:00:09][%csl Gh3][%cal Rh6h7]} Bg8 {[%emt 0:00:39]} 43. Qxg6 {[%emt 0:00:10]} b4 {[%emt 0:00:17]} 44. axb4 {[%emt 0:00:13]} a3 {[%emt 0:00:05]} (44... Rf8 {was necessary.} 45. Qh6 Rg7) 45. bxa3 {[%emt 0:00:05]} Qa4 {[%emt 0:00:13]} 46. Qh5 {[%emt 0:00:35] Against Qd1+} Qxa3 {[%emt 0:00:15]} 47. Rhe3 {[%emt 0:03:05][%cal Og2d5]} Qc1+ {[%emt 0:00:20]} (47... Rc8 {was worth a try.}) 48. Bf1 {[%emt 0:00:58]} Rc8 {[%emt 0:00:22]} 49. Qh3 {[%emt 0:00:30][%cal Oe5d5]} Rec7 {[%emt 0:00:21]} 50. c4 {[%emt 0:02:40]} ({Resist} 50. Qh6 $6 Rg7) (50. g6 $18) 50... dxc4 $14 {[%emt 0:03:18]} 51. d5 {[%emt 0:00:46]} c3 {[%emt 0:00:32]} 52. dxe6 {[%emt 0:00:05]} c2 {[%emt 0:00:06]} 53. Qxf5 {[%emt 0:01:05][%cal Oe3c3] Black must now prevent Rc3!} Qxe3+ {[%emt 0:00:19]} 54. Rxe3 {[%emt 0:01:40] Intending e7 and mate.} c1=Q {[%emt 0:00:07] Chess con chili.} 55. Qe5+ {[%emt 0:00:02]} Rg7 {[%emt 0:00:08]} 56. h4 $40 {[%emt 0:01:44][%mdl 128] aiming for f5. Black needs to defend precisely.} Qd1 {[%emt 0:00:53] [#]} (56... Rd8 $11 57. Re1 Qd2) 57. f5 $1 $16 {[%emt 0:00:23][%cal Bf4f5,Bf5f6][%mdl 32] Hoping for f6.} Qg4+ $2 {[%emt 0:03:12][%mdl 8192]} (57... Rc1 $16 {keeps fighting.} 58. Qf4 Qd2) 58. Rg3 $18 {[%emt 0:00:01]} Qxb4 {[%emt 0:01:38] Threatens to win with ...Rc5.} 59. f6 {[%emt 0:00:04][%csl Ge5][%cal Rf6g7]} Qb6+ $2 {[%emt 0:00:53]} (59... Rf7 60. e7 Qd2) 60. Re3 {[%emt 0:02:13][%csl Ge5][%cal Rf6g7]} Rf7 {[%emt 0:00:20]} 61. exf7 {[%emt 0:00:27]} Bxf7 {[%emt 0:00:05] And now ...Re8 would win.} 62. Qe7 {[%emt 0:02:14]} (62. Kg2 $18) 62... Re8 $11 {[%emt 0:00:04]} 63. Qxe8+ {[%emt 0:01:04][%mdl 8192]} (63. Qxf7 $11 Qxe3+ 64. Kg2 (64. Kh1 Qf3+ 65. Kg1 Qg3+ 66. Kh1 Qxh4+ 67. Kg1 Qxg5+ 68. Kh1 Qh6+ 69. Kg1 Qe3+ 70. Kh1 Qf3+ 71. Kg1 Qg3+ 72. Kh1 Rg8) 64... Qe4+ 65. Kg3 Qe3+ 66. Kg2 Qe4+ 67. Kg3 Qe3+ 68. Kg2) 63... Bxe8 {[%emt 0:00:09] A wild game.  Weighted Error Value: White=0.42/Black=0.29 (precise)} 0-1

[Event "67th Mexican-ch Open 2022"]
[Site "Chihuahua"]
[Date "2022.04.17"]
[Round "8.21"]
[White "Gonzalez Cruz, Ian Josue"]
[Black "Tapie Amione, Pablo Adib"]
[Result "0-1"]
[ECO "E32"]
[WhiteElo "1814"]
[BlackElo "2241"]
[Annotator "TA"]
[PlyCount "36"]
[EventDate "2022.04.12"]
[EventType "swiss"]
[EventCountry "MEX"]
[SourceTitle "playchess.com"]
[Source "ChessBase"]
[SourceQuality "1"]
[TimeControl "5400+30"]

{[%evp 9,36,-5,14,-5,39,-20,-26,-46,-41,-43,-46,-82,-79,-72,-58,-51,-50,-51,-61,-54,-54,-60,-54,-84,-52,-88,-77,-985,-745]} 1. d4 {[%emt 0:00:03]} Nf6 {[%emt 0:03:26]} 2. c4 {[%emt 0:00:06]} e6 {[%emt 0:00:14]} 3. Nc3 {[%emt 0:00:05]} Bb4 {[%emt 0:00:08]} 4. Qc2 {[%emt 0:00:07]} O-O {[%emt 0:00:08]} 5. e4 {[%emt 0:00:13]} d6 {[%emt 0:01:01]} 6. Nf3 {[%emt 0:00:33] E32: Nimzo-Indian: Classical (4 Qc2): 4...0-0.} Nc6 {[%emt 0:04:19]} 7. Bg5 {[%emt 0:01:00]} ({White should try} 7. Bd3 $14) 7... e5 $11 {[%emt 0:00:15]} 8. dxe5 {[%emt 0:10:32] Black has an edge.} dxe5 {[%emt 0:00:30]} 9. Rd1 {[%emt 0:00:07]} Qe7 {[%emt 0:00:17]} 10. a3 {[%emt 0:01:05]} Bxc3+ {[%emt 0:00:07]} 11. Qxc3 {[%emt 0:00:07] [#]} h6 $146 {[%emt 0:00:41]} ({Predecessor:} 11... Bg4 12. h3 Bh5 13. g4 Bg6 14. Bd3 Qe6 15. Qc2 Rad8 16. O-O h6 17. Bh4 Rd7 {0-1 (27) Timofeev,A (2574)-Fedoseev,V (2704) Chess.com INT 2022}) 12. Bxf6 {[%emt 0:00:27]} Qxf6 {[%emt 0:00:04]} 13. Be2 {[%emt 0:00:06]} Bg4 {[%emt 0:01:15]} 14. O-O {[%emt 0:02:56]} Bxf3 {[%emt 0:00:30]} 15. Bxf3 {[%emt 0:01:02]} Nd4 {[%emt 0:00:07]} 16. Rd3 {[%emt 0:01:26]} a5 {[%emt 0:06:24]} 17. g3 {[%emt 0:00:22]} Ra6 {[%emt 0:00:32] &Nero is more active.} 18. Bg2 $2 {[%emt 0:00:31][%mdl 8192] [#]} (18. Re3 $17) 18... Ne2+ {[%emt 1:19:32] White did not feel at home in the position after the opening.  Weighted Error Value: White=0.81/Black=0.11 (very precise)} 0-1

[Event "67th Mexican-ch Open 2022"]
[Site "Chihuahua"]
[Date "2022.04.17"]
[Round "8.23"]
[White "Rosales Campos, Paul"]
[Black "Garduno Huerta, Joshua Emiliano"]
[Result "1-0"]
[ECO "C49"]
[WhiteElo "2039"]
[BlackElo "1622"]
[Annotator "TA"]
[PlyCount "69"]
[EventDate "2022.04.12"]
[EventType "swiss"]
[EventCountry "MEX"]
[SourceTitle "playchess.com"]
[Source "ChessBase"]
[SourceQuality "1"]
[TimeControl "5400+30"]

{[%evp 9,69,13,13,-16,32,31,116,123,126,17,8,1,-1,-29,-33,-64,-55,-77,-68,-77,-19,-31,-37,-28,-23,-32,-20,-22,-6,-21,-12,-31,-39,-47,-3,-8,0,0,0,0,0,-139,176,177,193,185,171,167,770,761,727,714,638,511,1141,529,29991,29992,29992,29993,29995,29996]} 1. e4 {[%emt 0:06:45]} e5 {[%emt 0:00:10]} 2. Nf3 {[%emt 0:00:40]} Nc6 {[%emt 0:00:04]} 3. Nc3 {[%emt 0:00:30]} Nf6 {[%emt 0:00:30]} 4. Bb5 {[%emt 0:00:37]} Bb4 {[%emt 0:05:24]} 5. O-O {[%emt 0:00:58]} O-O {[%emt 0:01:05]} 6. d4 {[%emt 0:00:47] C49: Four Knights: 4 Bb5 Bb4.} d6 {[%emt 0:03:24]} (6... Bxc3 $11 {was preferrable.} 7. bxc3 Nxe4) 7. Bg5 $14 {[%emt 0:27:51] Black must now prevent Nd5.} exd4 {[%emt 0:20:18]} (7... Bxc3 $14 8. bxc3 h6 9. Bxf6 Qxf6) 8. Nd5 $16 {[%emt 0:04:28] White is better.} (8. Nxd4 $6 Nxd4 9. Qxd4 Bc5 $11) 8... Bc5 {[%emt 0:02:42] [#]} 9. Nh4 $146 {[%emt 0:08:12] &Bianco is more active.} ({White should try} 9. Bh4 $16) ({Predecessor:} 9. Qc1 Ne5 10. Nxf6+ gxf6 11. Bh6 c6 12. Bxf8 Qxf8 13. Be2 Qg7 14. Qf4 Nxf3+ 15. Qxf3 {1-0 (28) Admiraal,M (1944)-Straat,R (2202) Vlissingen 2008}) 9... Kh8 $11 {[%emt 0:05:39]} 10. Kh1 {[%emt 0:11:09]} Ne5 $1 {[%emt 0:02:50]} 11. Nxf6 {[%emt 0:05:32]} gxf6 {[%emt 0:00:47]} 12. Bh6 {[%emt 0:01:17]} Rg8 {[%emt 0:00:16][%cal Of6f5] aiming for ...f5!} 13. Nf5 {[%emt 0:05:41]} c6 {[%emt 0:05:13]} 14. Bd3 {[%emt 0:01:40]} Bxf5 {[%emt 0:02:09]} ({Better is} 14... d5 $17) 15. exf5 {[%emt 0:00:13]} d5 {[%emt 0:00:34]} 16. Qh5 {[%emt 0:01:59]} Bf8 {[%emt 0:01:04]} 17. Bd2 {[%emt 0:01:25]} Qb6 {[%emt 0:05:12]} 18. b3 {[%emt 0:01:54]} Re8 {[%emt 0:03:28]} 19. Be2 {[%emt 0:01:47]} Bb4 {[%emt 0:07:55]} 20. Bh6 {[%emt 0:01:47]} Qc5 {[%emt 0:01:09]} 21. Rad1 {[%emt 0:01:23][%cal Ba1d1,Bd1d4,Bd4h4][%mdl 32]} Qxc2 {[%emt 0:06:08]} 22. Rxd4 {[%emt 0:02:15]} Bf8 {[%emt 0:00:36] Strongly threatening ...Bxh6.} 23. Be3 $40 {[%emt 0:01:44][%mdl 128] Black needs to defend precisely. A strong pair of Bishops.} Rg7 {[%emt 0:09:55]} 24. Rh4 {[%emt 0:11:56]} Bc5 {[%emt 0:02:35]} (24... Qxa2 25. Bh6 Kg8 26. Bxg7 Bxg7 27. f4 $16 (27. Qxh7+ Kf8 $14)) 25. Rc1 {[%emt 0:00:00] [#]} (25. Bh6 $11 {keeps the balance.} Reg8 26. b4 (26. Rc1 $2 Rxg2 27. Bg7+ R8xg7 $19)) 25... Qxa2 $1 {[%emt 0:01:04][%mdl 8192] Loses the game.} 26. Bxc5 $18 {[%emt 0:00:00] Bf1 is the strong threat.} Ng6 {[%emt 0:08:34]} 27. fxg6 {[%emt 0:00:00]} fxg6 {[%emt 0:00:01]} 28. Qg4 {[%emt 0:00:33]} Rxe2 {[%emt 0:00:54]} (28... Qxe2 29. Qxe2 Rxe2) 29. Qc8+ {[%emt 0:00:57]} Rg8 {[%emt 0:00:01]} 30. Qxb7 {[%emt 0:00:39][%csl Gb7][%cal Rh4h7]} h5 {[%emt 0:01:18]} 31. Rg1 {[%emt 0:00:27]} Rge8 {[%emt 0:01:12]} (31... Qc2 $142 32. Qxc6 Qc3) 32. Qxc6 {[%emt 0:00:35]} (32. Qf7 $142 Qb1 {[#]} 33. Qxe8+ $3 {[%mdl 512]} (33. Rxb1 $2 {is a self mate.} Re1+ 34. Rxe1 Rxe1#) 33... Rxe8 34. Rxb1) 32... Re1 {[%emt 0:00:38] Hoping for ...Rxg1+.} 33. Qxf6+ {[%emt 0:00:07] White mates.} Kh7 {[%emt 0:00:02]} 34. Qf7+ {[%emt 0:00:39]} Kh8 {[%emt 0:00:01]} 35. Bd4+ {[%emt 0:00:06] Weighted Error Value: White=0.45/Black=0.57} 1-0

[Event "67th Mexican-ch Open 2022"]
[Site "Chihuahua"]
[Date "2022.04.17"]
[Round "8.25"]
[White "Avila Fraire, Ameyalli"]
[Black "Guillen Cristobal, Sandra N"]
[Result "0-1"]
[ECO "B89"]
[WhiteElo "1955"]
[BlackElo "1933"]
[Annotator "TA"]
[PlyCount "127"]
[EventDate "2022.04.12"]
[EventType "swiss"]
[EventCountry "MEX"]
[SourceTitle "playchess.com"]
[Source "ChessBase"]
[SourceQuality "1"]
[TimeControl "5400+30"]

{[%evp 20,127,35,29,30,33,38,-31,-23,-67,-60,-48,-79,-123,-76,-208,22,-53,-53,-76,-65,-77,-72,-64,-60,-64,-49,-121,-122,-124,-137,-124,-149,-132,-133,-128,-106,-98,-103,-100,-50,-68,-51,-98,-114,-168,-168,-236,-204,-434,-454,-461,-445,-717,-707,-664,-519,-519,-519,-519,-464,-519,-519,-512,-512,-515,-512,-510,-508,-547,-532,-673,-631,-638,-624,-934,-885,-1821,-1675,-900,-775,-816,-789,-1315,-1227,-1733,-1752,-1816,-1838,-5632,-1743,-1840,-1736,-1556,-1214,-2660,-3586,-2188,-1296,-5539,-3218,-3354,-2208,-29976,-29977,-29984,-29985,-29985,-29986,-29991]} 1. e4 {[%emt 0:04:15]} c5 {[%emt 0:00:05]} 2. Nf3 {[%emt 0:00:05]} Nc6 {[%emt 0:00:07]} 3. d4 {[%emt 0:00:10]} cxd4 {[%emt 0:00:07]} 4. Nxd4 {[%emt 0:00:06]} Nf6 {[%emt 0:00:07]} 5. Nc3 {[%emt 0:00:25]} d6 {[%emt 0:00:18]} 6. Bc4 {[%emt 0:00:19]} a6 {[%emt 0:00:50]} 7. Bb3 {[%emt 0:00:34]} e6 {[%emt 0:00:41]} 8. Be3 {[%emt 0:00:55]} Be7 {[%emt 0:00:29]} 9. Qe2 {[%emt 0:00:31]} Bd7 {[%emt 0:00:30]} 10. O-O-O {[%emt 0:01:46]} Qc7 {[%emt 0:00:21]} 11. g4 {[%emt 0:03:43]} Nxd4 {[%emt 0:07:47] B89: Sicilian: Velimirovic Attack.} 12. Rxd4 {[%emt 0:01:06]} Bc6 {[%emt 0:01:27]} 13. f3 {[%emt 0:02:25]} (13. f4 $14) 13... b5 {[%emt 0:00:24] Black is slightly better.} 14. Rg1 {[%emt 0:01:07]} Nd7 {[%emt 0:01:28]} 15. g5 {[%emt 0:08:24]} Nc5 {[%emt 0:01:05]} 16. Kb1 {[%emt 0:04:04] [#]} Qb7 $146 {[%emt 0:02:28]} ({Black should play} 16... Rb8 {White must now prevent ...a5.} 17. Nd1 a5) ({Predecessor:} 16... O-O 17. f4 Rfb8 18. f5 b4 19. fxe6 fxe6 20. Nd1 Nxb3 21. cxb3 Bb5 22. Qd2 e5 23. Rxb4 {1-0 (29) Kelecevic,N (2387)-Schweizer,R (1957) Winterthur 2007}) 17. Rdd1 {[%emt 0:10:08]} (17. Qd1 $17 {is a better defense.}) 17... a5 $2 {[%emt 0:09:02] [#]} (17... b4 $19 18. Bxc5 dxc5) 18. Bxc5 {[%emt 0:02:59]} ({White should try} 18. Bd5 $1 $11) 18... dxc5 $15 {[%emt 0:00:11]} 19. a4 {[%emt 0:01:17]} bxa4 {[%emt 0:00:35]} 20. Bxa4 {[%emt 0:08:25]} Bxa4 {[%emt 0:00:53]} 21. Nxa4 {[%emt 0:00:05]} Qb4 {[%emt 0:00:14]} 22. b3 {[%emt 0:00:47]} Rb8 {[%emt 0:00:25]} 23. Nb2 {[%emt 0:03:41] [#]} ({Better is} 23. Ka2 $1 $15) 23... a4 $1 $17 {[%emt 0:00:24]} 24. Qc4 {[%emt 0:00:11]} axb3 {[%emt 0:02:06]} 25. Qxb4 {[%emt 0:00:50]} bxc2+ {[%emt 0:00:20]} ({And not} 25... cxb4 26. cxb3 g6 27. h4 $11) 26. Kxc2 {[%emt 0:00:05]} cxb4 {[%emt 0:00:20]} 27. Kb3 {[%emt 0:03:02]} O-O {[%emt 0:00:45]} 28. Rd7 {[%emt 0:02:58]} Bc5 {[%emt 0:00:19]} 29. Rgd1 {[%emt 0:04:17]} g6 {[%emt 0:00:53]} (29... Be3 $17 30. h4 g6) 30. Nc4 $1 $15 {[%emt 0:02:01]} Kg7 {[%emt 0:03:03]} 31. Ne5 {[%emt 0:03:12] Black continues to play with concentration.} (31. f4 $15) 31... Be3 $17 {[%emt 0:01:00]} 32. R7d3 {[%emt 0:00:12] [#]} (32. h4 $17 {was called for.}) 32... Ra8 $1 $19 {[%emt 0:04:19]} ({Don't do} 32... Bxg5 33. Nd7 $14) 33. Nd7 {[%emt 0:06:16]} (33. h4 $142) 33... Rfd8 {[%emt 0:01:06]} 34. Kxb4 $2 {[%emt 0:14:00]} (34. h4 {was necessary.}) 34... Bxg5 {[%emt 0:00:23]} 35. h3 {[%emt 0:01:05]} Ra2 {[%emt 0:02:31]} 36. Ne5 {[%emt 0:09:48]} (36. Kb3 $142 Rh2 37. Rb1) 36... Rb8+ {[%emt 0:05:22]} 37. Kc3 {[%emt 0:00:48]} Bf6 {[%emt 0:00:22]} 38. f4 {[%emt 0:00:05]} Bxe5+ {[%emt 0:01:22]} 39. fxe5 {[%emt 0:00:17][%mdl 4096] Endgame KRR-KRR} Re2 {[%emt 0:07:50]} 40. Rd7 {[%emt 0:01:05]} Rxe4 {[%emt 0:00:23]} 41. Rf1 {[%emt 0:00:12]} Rf8 {[%emt 0:00:11]} 42. Kd3 {[%emt 0:00:26]} Rxe5 {[%emt 0:00:13]} 43. Rf3 {[%emt 0:00:06]} Rf5 {[%emt 0:00:40]} 44. Re3 {[%emt 0:00:12]} Ra8 {[%emt 0:00:48]} 45. Rxe6 {[%emt 0:00:55]} Ra3+ {[%emt 0:00:15]} 46. Ke4 {[%emt 0:00:33]} Rxh3 {[%emt 0:00:40]} 47. Ree7 {[%emt 0:00:09]} Rh1 {[%emt 0:00:36] aiming for ...h5.} 48. Kd4 {[%emt 0:01:08]} h5 {[%emt 0:00:36]} 49. Ra7 {[%emt 0:00:21]} Rd1+ {[%emt 0:01:34]} 50. Kc3 {[%emt 0:02:52]} h4 {[%emt 0:00:42][%cal Bh5h4,Bh4h3][%mdl 32] Threatens to win with ...h3.} 51. Re4 {[%emt 0:00:28]} g5 {[%emt 0:00:31][%cal Bg6g5,Bg5g4][%mdl 32] And now ...h3 would win.} 52. Raa4 {[%emt 0:00:49]} h3 {[%emt 0:01:46] ( -> ...h2)} 53. Re2 {[%emt 0:00:43]} Rg1 {[%emt 0:00:40]} 54. Rh2 {[%emt 0:00:20]} g4 {[%emt 0:00:44]} 55. Re4 {[%emt 0:00:29]} Rf3+ {[%emt 0:00:32]} 56. Kd4 {[%emt 0:00:06]} f5 {[%emt 0:01:14]} 57. Re7+ {[%emt 0:00:23]} Kf6 {[%emt 0:00:18]} 58. Rh7 {[%emt 0:00:05]} Re1 {[%emt 0:01:29]} 59. Rh6+ {[%emt 0:01:09]} Kg5 {[%emt 0:00:14]} 60. Rh8 {[%emt 0:00:25]} Kf4 {[%emt 0:00:30]} 61. Ra8 {[%emt 0:00:05]} Kg3 {[%emt 0:01:15] Black mates.} 62. Raa2 {[%emt 0:00:09]} Ref1 {[%emt 0:00:17]} 63. Ke5 {[%emt 0:00:44]} R3f2 {[%emt 0:00:30]} 64. Ra1 {Weighted Error Value: White=0.58/Black=0.21 (precise)} 0-1